[Event "Superbet Blitz Poland 2022"]
[Site "Warsaw"]
[Date "2022.05.22"]
[Round "4.4"]
[White "Gavrilescu, David"]
[Black "So, Wesley"]
[Result "1/2-1/2"]
[ECO "B51"]
[WhiteElo "2518"]
[BlackElo "2766"]
[Annotator "TA"]
[PlyCount "119"]
[EventDate "2022.05.22"]
[EventType "tourn"]
[EventCountry "POL"]
[SourceTitle "playchess.com"]
[Source "ChessBase"]
[SourceQuality "1"]
[TimeControl "300+2"]

{[%evp 9,119,16,11,12,8,12,8,8,9,0,3,-5,-3,-5,0,0,0,-15,29,-12,-22,-25,-20,-15,-5,-29,-28,-67,-65,-53,-66,-113,-110,-122,-32,-37,-29,-52,37,14,79,67,70,74,266,255,257,236,228,220,214,158,210,204,199,176,241,223,231,219,266,266,266,266,266,266,441,428,405,360,397,373,419,378,727,722,619,510,977,933,1106,1106,1106,712,1677,1672,2790,2637,29962,9622,2866,2900,3462,2418,12786,6805,4610,0,0,0,0,0,0,0,0,0,0,0,0,0,0,0]} 1. e4 {[%emt 0:00:02]} c5 {[%emt 0:00:00]} 2. Nf3 {[%emt 0:00:02]} d6 {[%emt 0:00:01]} 3. Bb5+ {[%emt 0:00:02]} Nd7 {[%emt 0:00:01]} 4. d4 {[%emt 0:00:01]} cxd4 {[%emt 0:00:01]} 5. Qxd4 {[%emt 0:00:02]} a6 {[%emt 0:00:01]} 6. Be2 {[%emt 0:00:02] B51: Sicilian: Moscow Variation (3 Bb5+) without 3...Bd7.} Ngf6 {[%emt 0:00:07]} 7. O-O {[%emt 0:00:02]} e5 {[%emt 0:00:02]} 8. Qe3 {[%emt 0:00:02]} Nc5 {[%emt 0:00:03]} 9. Nc3 {[%emt 0:00:01]} Be7 {[%emt 0:00:07]} 10. h3 {[%emt 0:00:04]} O-O {[%emt 0:00:15] [#]} 11. a4 $146 {[%emt 0:00:01]} ({Predecessor:} 11. b4 Ne6 12. Rd1 Bd7 13. Bf1 Rc8 14. a4 Re8 15. a5 Rc7 16. b5 Qc8 17. Bd2 {½-½ (30) Wegelin,R-Kuhne,D freechess.de 2021}) 11... Bd7 {[%emt 0:00:05][%cal Ob7b5]} 12. a5 {[%emt 0:00:02]} Bc6 {[%emt 0:00:03][%cal Rc5e4]} 13. Rd1 {[%emt 0:00:01]} Qc7 {[%emt 0:00:08][%cal Rc5e4]} (13... Bxe4 14. b4 Bxf3 15. Bxf3 $16) (13... Ncxe4 {feels hotter.} 14. Nxe5 Nxc3 15. Qxc3 Nd5) 14. Nd2 {[%emt 0:00:07]} Rad8 {[%emt 0:00:07]} 15. Bf3 {[%emt 0:00:04]} d5 {[%emt 0:00:13]} 16. exd5 {[%emt 0:00:36]} Nxd5 {[%emt 0:00:02]} (16... Bxd5 {keeps more tension.} 17. Nxd5 Nxd5 18. Qe2 Nf4) 17. Nxd5 {[%emt 0:00:06]} Bxd5 {[%emt 0:00:00]} 18. Bxd5 {[%emt 0:00:40]} Rxd5 {[%emt 0:00:02]} 19. Re1 {[%emt 0:00:01]} Ne6 {[%emt 0:00:20][%csl LRa5,LRc2]} 20. c3 {[%emt 0:00:02]} (20. Qe4 $15 Qc6 21. Nf1) 20... Bg5 $17 {[%emt 0:00:17]} 21. Qe2 {[%emt 0:00:30]} Nf4 {[%emt 0:00:01]} (21... Rxa5 $6 22. Rxa5 Bxd2 23. Bxd2 $11) (21... Rfd8 $17 {[%cal Rg5d2]} 22. Nf1 Bxc1 23. Rexc1 Nf4) 22. Qc4 {[%emt 0:00:04]} Rc5 {[%emt 0:00:51]} 23. Qf1 {[%emt 0:00:01]} Bh6 {[%emt 0:00:16]} (23... Rxa5 $15 24. Rxa5 Qxa5) 24. Ne4 {[%emt 0:00:38]} Rxa5 {[%emt 0:00:38]} (24... Rc6 $1 $11) 25. Rxa5 $16 {[%emt 0:00:02]} Qxa5 {[%emt 0:00:01]} 26. g3 $1 {[%emt 0:00:03]} f5 $2 {[%emt 0:00:01]} (26... Ng6 $16) 27. Bxf4 $18 {[%emt 0:00:40] [#] And now Qc4+ would win.} fxe4 {[%emt 0:00:04]} 28. Bxh6 {[%emt 0:00:02]} gxh6 {[%emt 0:00:01][%mdl 4096] Endgame KQR-KQR} 29. Qc4+ {[%emt 0:00:05]} ({Much less strong is} 29. Rxe4 $6 h5 30. Rh4 Qd5) 29... Rf7 {[%emt 0:00:01]} 30. Qxe4 {[%emt 0:00:02]} Qc5 {[%emt 0:00:13]} (30... Qb6 $16 {is a better defense.}) 31. Re2 {[%emt 0:00:03]} ({Worse is} 31. Qxe5 Qxf2+ 32. Kh1 Qf3+ 33. Kh2 Qf2+ 34. Kh1 Qf3+ 35. Kh2 Qf2+ 36. Kh1 $11) 31... Re7 {[%emt 0:00:03]} 32. Rd2 {[%emt 0:00:02]} Qc6 {[%emt 0:00:15]} (32... Qc8 $142 33. Qb4 Kf7) 33. Rd8+ {[%emt 0:00:18]} Kg7 {[%emt 0:00:00]} 34. Qf5 {[%emt 0:00:04]} Rf7 {[%emt 0:00:09] Inhibits Qf8+.} 35. Qxe5+ {[%emt 0:00:02]} Qf6 {[%emt 0:00:01]} 36. Qxf6+ {[%emt 0:00:06]} Kxf6 {[%emt 0:00:00] KR-KR} 37. Rd6+ {[%emt 0:00:01]} Ke5 $2 {[%emt 0:00:09]} (37... Kg7 38. Rb6 h5) 38. Rxh6 {[%emt 0:01:35]} Kd5 39. b3 {[%emt 0:00:00]} Rc7 {[%emt 0:00:09]} 40. c4+ {[%emt 0:00:00]} Kc5 {[%emt 0:00:01]} 41. g4 {[%emt 0:00:00][%cal Bg3g4,Bg4g5][%mdl 32]} b6 $2 {[%emt 0:00:06]} (41... Rf7 42. Kg2 Re7) 42. g5 {[%emt 0:00:00]} Rb7 {[%emt 0:00:07]} 43. h4 {[%emt 0:00:00][%cal Bh3h4,Bh4h5,Bh5g6][%mdl 32] [#] Hoping for f4.} Kb4 {[%emt 0:00:01]} (43... Kd4 $142 44. h5 Ke4) 44. h5 {[%emt 0:00:00]} Kxb3 {[%emt 0:00:01]} 45. g6 {[%emt 0:00:00]} hxg6 {[%emt 0:00:01]} 46. hxg6 {[%emt 0:00:00] Threatens to win with f4.} a5 {[%emt 0:00:07]} 47. f4 {[%emt 0:00:00]} ({Weaker is} 47. Rh7 Rb8 $18) 47... a4 {[%emt 0:00:03]} 48. f5 {[%emt 0:00:00]} Rg7 {[%emt 0:00:16]} 49. Kf2 {[%emt 0:00:07]} (49. f6 $142 a3 50. Rh3+ Kb4 51. fxg7 a2 52. g8=Q a1=Q+ 53. Kg2 Qb2+ 54. Kf3) 49... a3 {[%emt 0:00:02]} 50. Ke3 {[%emt 0:00:02]} a2 {[%emt 0:00:14]} 51. Rh1 {[%emt 0:00:02] aiming for Kf4.} Kxc4 {[%emt 0:00:01]} 52. Kf4 {[%emt 0:00:03] Ra1 is the strong threat.} b5 {[%emt 0:00:00]} 53. Kg5 $2 {[%emt 0:00:02]} (53. Ra1 $18 b4 54. Rxa2) 53... b4 $11 {[%emt 0:00:03] The position is equal.} 54. f6 {[%emt 0:00:00]} Rxg6+ {[%emt 0:00:01]} 55. Kxg6 {[%emt 0:00:01] Intending f7 and mate. KR-KPP} b3 {[%emt 0:00:00]} 56. f7 {[%emt 0:00:06]} b2 {[%emt 0:00:01]} 57. f8=Q {[%emt 0:00:02] White wants to mate with Qf4+.} b1=Q+ {[%emt 0:00:01]} 58. Rxb1 {[%emt 0:00:01]} axb1=Q+ {[%emt 0:00:02]} 59. Qf5 {[%emt 0:00:01]} Qxf5+ {[%emt 0:00:01]} 60. Kxf5 {Black escapes into a draw.  Weighted Error Value: White=0.22 (precise) /Black=0.54} 1/2-1/2

[Event "Superbet Blitz Poland 2022"]
[Site "Warsaw"]
[Date "2022.05.22"]
[Round "4.5"]
[White "Shevchenko, Kirill"]
[Black "Anand, Viswanathan"]
[Result "0-1"]
[ECO "C42"]
[WhiteElo "2644"]
[BlackElo "2751"]
[Annotator "TA"]
[PlyCount "98"]
[EventDate "2022.05.22"]
[EventType "tourn"]
[EventCountry "POL"]
[SourceTitle "playchess.com"]
[Source "ChessBase"]
[SourceQuality "1"]
[TimeControl "300+2"]

{[%evp 13,98,4,11,10,23,0,3,-6,-4,0,34,41,47,31,55,32,50,45,52,59,56,-11,-17,-8,-5,-32,0,-8,0,-35,-35,-141,-127,-133,-76,-156,-152,-204,-212,-269,-145,-196,-130,-139,-56,-177,-147,-198,-208,-226,-220,-291,-289,-486,-475,-467,-210,-214,-213,-183,-211,-210,-211,-211,-215,-199,-199,-299,-310,-467,-443,-462,-450,-425,-397,-481,-475,-462,-410,-537,-485,-589,-566,-29972,-29973,-6502,-6502]} 1. e4 {[%emt 0:00:01]} e5 {[%emt 0:00:01]} 2. Nf3 {[%emt 0:00:02]} Nf6 {[%emt 0:00:01]} 3. Nxe5 {[%emt 0:00:08]} d6 {[%emt 0:00:00]} 4. Nf3 {[%emt 0:00:02]} Nxe4 {[%emt 0:00:02]} 5. Nc3 {[%emt 0:00:01]} Nxc3 {[%emt 0:00:01]} 6. dxc3 {[%emt 0:00:01]} Be7 {[%emt 0:00:02]} 7. Be3 {[%emt 0:00:02]} O-O {[%emt 0:00:02]} 8. Bd3 {[%emt 0:00:08] C42: Petroff Defence: 3 Nxe5 and unusual White 3rd moves.} Nd7 {[%emt 0:00:02]} 9. Qe2 {[%emt 0:00:19] seems to push 9.Qd2 aside.} Nf6 {[%emt 0:00:06]} 10. O-O-O {[%emt 0:00:03] The position is equal.} Re8 {[%emt 0:00:01] [#]} 11. Kb1 $146 {[%emt 0:00:31]} ({Predecessor:} 11. h3 Bf8 12. g4 g6 13. Qd2 Bg7 14. Bh6 Bd7 15. Rhg1 Ne4 16. Bxe4 Rxe4 17. Bxg7 Kxg7 {½-½ (40) Bologan,V (2600)-Nguyen,T (2517) Batumi 2018}) 11... d5 {[%emt 0:00:15][%cal Oe7c5]} 12. c4 {[%emt 0:00:14]} Bc5 {[%emt 0:01:12]} 13. cxd5 {[%emt 0:00:32]} Bg4 {[%emt 0:00:17]} 14. h3 {[%emt 0:00:35]} Bh5 {[%emt 0:00:07]} 15. g4 {[%emt 0:00:33]} Bg6 {[%emt 0:00:13]} 16. Bxg6 {[%emt 0:00:05]} hxg6 {[%emt 0:00:01]} 17. Ng5 {[%emt 0:01:08]} (17. Rhe1 $14) 17... Bxe3 $11 {[%emt 0:00:23]} 18. fxe3 {[%emt 0:00:00]} Re5 {[%emt 0:00:01]} 19. h4 {[%emt 0:00:17][%cal Od5d6]} Qd7 {[%emt 0:00:02]} 20. e4 {[%emt 0:00:29]} Rae8 {[%emt 0:00:09][%cal Rf6e4]} 21. Qc4 {[%emt 0:00:24]} Nxe4 {[%emt 0:00:06]} 22. Nf3 {[%emt 0:00:02]} (22. Nxe4 $15 Rxe4 23. Qc3) 22... R5e7 $17 {[%emt 0:00:04]} 23. Rhg1 {[%emt 0:00:03]} Nd6 {[%emt 0:02:40]} ({Black should play} 23... Nf2 $1 {[%cal Rf2d1]} 24. Rde1 Rxe1+ 25. Rxe1 Rxe1+ 26. Nxe1 b5) 24. Qf4 {[%emt 0:00:06]} (24. Qc5 $142) 24... Re4 {[%emt 0:00:00]} 25. Qg3 {[%emt 0:00:01]} (25. Qg5 $17 {was called for.}) 25... Re3 $19 {[%emt 0:00:00]} 26. h5 {[%emt 0:00:01]} g5 {[%emt 0:00:00]} (26... Qb5 $1 $19 27. Qf2 Nc4) 27. Qf2 {[%emt 0:00:04]} (27. Qh3 $17 {keeps fighting.}) 27... Qe7 {[%emt 0:00:00]} (27... Nc4 $1 $19 {White must now prevent ...Qb5.} 28. Nxg5 Qe7) 28. Nd4 {[%emt 0:00:02]} Qf6 {[%emt 0:00:00]} (28... Qe5 $17 29. Qf1 Re4) 29. Qd2 {[%emt 0:00:02] This costs White the game.} (29. Qxf6 $15 gxf6 30. b3) 29... R3e4 {[%emt 0:00:00]} 30. Rgf1 {[%emt 0:00:01]} (30. Nf5 $17) 30... Rf4 $1 {[%emt 0:00:00]} 31. Rxf4 {[%emt 0:00:02]} gxf4 {[%emt 0:00:00]} 32. Nf3 {[%emt 0:00:02]} Re3 {[%emt 0:00:00]} 33. Qg2 {[%emt 0:00:02]} (33. Rf1) 33... Nc4 {[%emt 0:00:00][%csl Gc4][%cal Rf6b2]} 34. c3 {[%emt 0:00:02]} Rxc3 {[%emt 0:00:00]} 35. bxc3 {[%emt 0:00:01]} Qxc3 {[%emt 0:00:00][%cal Rc4a3]} 36. a4 {[%emt 0:00:01]} Qb3+ $40 {[%emt 0:00:00][%mdl 128] Black wants a kill.} 37. Kc1 {[%emt 0:00:02] [#]} Qxd1+ {[%emt 0:00:00][%mdl 576] Decoy} 38. Kxd1 {[%emt 0:00:01]} Ne3+ {[%emt 0:00:00]} 39. Ke2 {[%emt 0:00:03]} Nxg2 {[%emt 0:00:00][%mdl 4096] Endgame KN-KN} 40. Kd3 {[%emt 0:00:04]} (40. d6 {was necessary.} cxd6 41. Nd4) 40... Ne3 {[%emt 0:00:00]} 41. Ke4 {[%emt 0:00:02]} (41. d6 {might work better.} cxd6 42. g5) 41... Nxg4 {[%emt 0:00:00]} 42. Kxf4 {[%emt 0:00:03]} Nf6 {[%emt 0:00:00][%csl LRd5,LRh5]} 43. Ke5 {[%emt 0:00:00]} Kf8 {[%emt 0:00:00]} 44. Nd4 {[%emt 0:00:03]} Nxh5 {[%emt 0:00:00]} 45. Nb5 {[%emt 0:00:00]} Ke7 {[%emt 0:00:00]} ({But not} 45... f6+ $2 46. Ke4 $19) 46. Nxa7 {[%emt 0:00:05]} Nf6 {[%emt 0:00:00]} 47. a5 {[%emt 0:00:03]} Ne8 {[%emt 0:00:00]} 48. Nc6+ {[%emt 0:00:02]} bxc6 {[%emt 0:00:00]} 49. a6 {[%emt 0:00:01] [#]} Nd6 $1 {[%emt 0:00:00] Weighted Error Value: White=0.58/Black=0.19 (very precise)} 0-1

[Event "Superbet Blitz Poland 2022"]
[Site "Warsaw"]
[Date "2022.05.22"]
[Round "5.1"]
[White "Anand, Viswanathan"]
[Black "Aronian, Levon"]
[Result "1/2-1/2"]
[ECO "C67"]
[WhiteElo "2751"]
[BlackElo "2765"]
[Annotator "TA"]
[PlyCount "91"]
[EventDate "2022.05.22"]
[EventType "tourn"]
[EventCountry "POL"]
[SourceTitle "playchess.com"]
[Source "ChessBase"]
[SourceQuality "1"]
[TimeControl "300+2"]

{[%evp 18,91,17,16,16,20,20,18,21,21,24,7,8,11,6,6,9,10,9,0,0,0,0,0,0,0,0,0,0,0,0,0,0,0,0,0,0,0,0,0,0,0,0,0,0,0,0,0,0,0,0,0,0,0,0,0,0,0,0,0,0,0,0,0,0,0,0,0,0,0,0,0,0,0,0,0]} 1. e4 {[%emt 0:00:02]} e5 {[%emt 0:00:01]} 2. Nf3 {[%emt 0:00:01]} Nc6 {[%emt 0:00:01]} 3. Bb5 {[%emt 0:00:02]} Nf6 {[%emt 0:00:01]} 4. O-O {[%emt 0:00:02][%cal Bh1f1,Bf1e1,Be1e5][%mdl 32]} Nxe4 {[%emt 0:00:02]} 5. Re1 {[%emt 0:00:03]} Nd6 {[%emt 0:00:01]} 6. Nxe5 {[%emt 0:00:02]} Be7 {[%emt 0:00:01]} 7. Bf1 {[%emt 0:00:02]} Nxe5 {[%emt 0:00:02]} 8. Rxe5 {[%emt 0:00:02]} O-O {[%emt 0:00:02]} 9. d4 {[%emt 0:00:08]} Bf6 {[%emt 0:00:07]} 10. Re1 {[%emt 0:00:02]} Re8 {[%emt 0:00:01] C67: Ruy Lopez: Berlin Defence: 4 0-0 Nxe4.} 11. Bf4 {[%emt 0:00:22]} Rxe1 {[%emt 0:00:02]} 12. Qxe1 {[%emt 0:00:01]} Ne8 {[%emt 0:00:01][%cal Bd6e8,Be8g7,Bg7f5][%mdl 32]} 13. c3 {[%emt 0:00:03]} d5 {[%emt 0:00:02]} 14. Bd3 {[%emt 0:00:05]} (14. Nd2 c6 15. Bd3 {½-½ (15) Anand,V (2757)-Aronian,L (2772) Bucharest 2019}) 14... g6 {[%emt 0:00:13] The position is equal.} 15. Nd2 {[%emt 0:00:03]} Ng7 {[%emt 0:00:01]} 16. Nf3 {[%emt 0:00:05] 16.Nf3 is better than 16.Qe2.} Bf5 {[%emt 0:00:17]} 17. Bxf5 {[%emt 0:00:05]} Nxf5 {[%emt 0:00:02]} 18. Be5 {[%emt 0:00:31]} c6 {[%emt 0:00:15]} 19. Qe2 {[%emt 0:00:13] [#]} Qe7 $146 {[%emt 0:00:32]} ({Predecessor:} 19... Be7 20. Re1 Bf8 21. h3 f6 22. Bf4 Qd7 23. Nd2 Ng7 24. Qf3 Re8 25. Rxe8 Qxe8 {0-1 (33) Khanin,S (2292)-Aleksandrov,A (2583) St Petersburg 2014}) 20. Re1 {[%emt 0:00:04]} Re8 {[%emt 0:00:02]} 21. Qd2 {[%emt 0:00:14] [#] And now Bxf6 would win.} Bxe5 {[%emt 0:00:17]} 22. Rxe5 {[%emt 0:00:02]} Qd8 {[%emt 0:00:13]} 23. Rxe8+ {[%emt 0:00:04]} Qxe8 {[%emt 0:00:00]} 24. Qe1 {[%emt 0:00:59]} Qxe1+ {[%emt 0:00:06]} 25. Nxe1 $11 {[%emt 0:00:02][%mdl 4096] Endgame KN-KN} Nd6 {[%emt 0:00:06]} 26. Kf1 {[%emt 0:00:06]} f6 {[%emt 0:00:04]} 27. Ke2 {[%emt 0:00:02]} Kf7 {[%emt 0:00:01]} 28. Nd3 {[%emt 0:00:02]} Ke7 {[%emt 0:00:11]} 29. f3 {[%emt 0:00:06]} a5 {[%emt 0:00:14]} 30. b3 {[%emt 0:00:06]} b6 {[%emt 0:00:05]} 31. g3 {[%emt 0:00:17]} Kd7 {[%emt 0:00:07]} 32. Nf4 {[%emt 0:00:03]} Nf5 {[%emt 0:00:15]} 33. Ng2 {[%emt 0:00:06]} Kd6 {[%emt 0:00:11]} 34. Ne3 {[%emt 0:00:02]} Nxe3 {[%emt 0:00:08]} 35. Kxe3 {[%emt 0:00:02] KP-KP} Ke6 {[%emt 0:00:02]} 36. a4 {[%emt 0:00:06]} b5 {[%emt 0:00:11]} 37. h4 {[%emt 0:00:07]} bxa4 {[%emt 0:00:19]} 38. bxa4 {[%emt 0:00:01]} g5 {[%emt 0:00:01] [#] Hoping for ...gxh4.} 39. hxg5 {[%emt 0:00:06]} fxg5 {[%emt 0:00:02]} 40. g4 {[%emt 0:00:01]} Kf6 {[%emt 0:00:01]} 41. Kf2 {[%emt 0:00:01]} Kg6 {[%emt 0:00:01]} 42. Kg2 {[%emt 0:00:01]} Kf7 {[%emt 0:00:02]} 43. Kf1 {[%emt 0:00:02]} Kg6 {[%emt 0:00:03]} 44. Kg2 {[%emt 0:00:01]} Kf7 {[%emt 0:00:01]} 45. Kf1 {[%emt 0:00:02]} Kg6 {[%emt 0:00:01]} 46. Kg2 {[%emt 0:00:01] An uneventful encounter.  Weighted Error Value: White=0.01 (flawless) /Black=0.00 (flawless)} 1/2-1/2

[Event "Superbet Blitz Poland 2022"]
[Site "Warsaw"]
[Date "2022.05.22"]
[Round "5.2"]
[White "So, Wesley"]
[Black "Shevchenko, Kirill"]
[Result "1-0"]
[ECO "B52"]
[WhiteElo "2766"]
[BlackElo "2644"]
[Annotator "TA"]
[PlyCount "105"]
[EventDate "2022.05.22"]
[EventType "tourn"]
[EventCountry "POL"]
[SourceTitle "playchess.com"]
[Source "ChessBase"]
[SourceQuality "1"]
[TimeControl "300+2"]

{[%evp 21,105,17,27,0,0,0,0,0,0,-29,-34,-46,-40,-28,-2,-29,0,0,122,37,86,0,139,7,136,148,150,152,131,135,219,216,229,241,323,218,227,196,196,186,191,170,186,183,201,197,241,213,207,211,211,219,325,269,260,236,253,218,243,235,304,272,272,272,431,431,408,395,481,470,1009,993,695,962,716,901,777,658,1278,1209,5631,5631,6119,4355,29968,29971]} 1. e4 {[%emt 0:00:01]} c5 {[%emt 0:00:01]} 2. Nf3 {[%emt 0:00:01]} d6 {[%emt 0:00:01]} 3. Bb5+ {[%emt 0:00:01]} Bd7 {[%emt 0:00:04]} 4. Bxd7+ {[%emt 0:00:02]} Qxd7 {[%emt 0:00:01]} 5. c4 {[%emt 0:00:01]} Nc6 {[%emt 0:00:06]} 6. d4 {[%emt 0:00:11]} cxd4 {[%emt 0:00:01]} 7. Nxd4 {[%emt 0:00:01]} Nf6 {[%emt 0:00:04]} 8. Nc3 {[%emt 0:00:01]} g6 {[%emt 0:00:12]} 9. f3 {[%emt 0:00:08]} Bg7 {[%emt 0:00:01]} 10. Be3 {[%emt 0:00:01]} O-O {[%emt 0:00:03]} 11. O-O {[%emt 0:00:05]} a6 {[%emt 0:00:03]} 12. a4 {[%emt 0:00:18] B52: Sicilian: Moscow Variation with 3...Bd7.} e6 {[%emt 0:00:22]} 13. Nde2 {[%emt 0:00:01] is the legacy move (13.Rc1).} Qc7 {[%emt 0:00:29]} 14. b3 {[%emt 0:00:03] The position is equal.} Rfd8 {[%emt 0:00:24][%cal Od6d5] [#]} 15. Kh1 $146 {[%emt 0:00:25]} ({Predecessor:} 15. Rc1 Rac8 16. Bf2 Nd7 17. Bh4 Re8 18. Bg3 Be5 19. f4 Bg7 20. Kh1 Nc5 21. f5 {0-1 (55) Escobar Medina,A (2269)-Arenas Vanegas,D (2431) Cartagena 2019}) 15... d5 {[%emt 0:00:57]} 16. cxd5 {[%emt 0:00:09]} exd5 {[%emt 0:00:01]} 17. exd5 {[%emt 0:00:01]} Nb4 {[%emt 0:00:02][%cal Rf6d5] Inhibits Ra2.} (17... Qa5 $5 {[%cal Rf6d5]} 18. d6 Ne8 $15) 18. Rc1 {[%emt 0:00:15]} (18. Bf4 $5 {[%cal Rf4c7]} Qa5 19. d6 $11) 18... Qe7 {[%emt 0:00:15][%mdl 1024] Black has compensation.} 19. Bg5 {[%emt 0:00:37]} Rac8 {[%emt 0:01:01] [#]} (19... h6 $11 20. Bxf6 Bxf6) 20. Qd2 {[%emt 0:00:07]} (20. d6 $1 $16 {[%cal Rd6e7]} Qd7 21. Qd2) 20... Qe5 {[%emt 0:00:28]} (20... h6 $14 21. Bh4 (21. Bxh6 Bxh6 22. Qxh6 Nbxd5 $11) 21... g5) 21. Rcd1 {[%emt 0:00:38]} (21. h3 $16) 21... a5 {[%emt 0:00:26]} (21... Nbxd5 $11 22. Bxf6 Nxf6 23. Qxd8+ Rxd8 24. Rxd8+ Bf8) 22. Rfe1 {[%emt 0:00:19] Black is now going downhill.} (22. Bf4 $16 Qf5 23. Nd4) 22... h6 {[%emt 0:00:07]} (22... Nbxd5 $11 {keeps the balance.} 23. Nb5 (23. Bxf6 Nxf6 24. Qxd8+ Rxd8 $11) 23... Bf8) 23. Bf4 $36 {[%emt 0:00:07][%mdl 2048] White has strong initiative.} (23. Bxh6 Bxh6 24. Qxh6 Rxc3 25. Nxc3 Qxc3 $15) 23... Qf5 {[%emt 0:00:11][%cal Rf6d5]} 24. Nd4 {[%emt 0:00:24][%cal Be2d4,Bd4b5,Bb5c3][%mdl 32]} (24. Bxh6 $6 Nfxd5 25. Bxg7 Kxg7 $14) 24... Qd7 {[%emt 0:00:12][%cal Oc8c3]} 25. d6 {[%emt 0:00:01] [#] Hoping for Re7. White is more active.} Re8 {[%emt 0:00:10] Against Re7} (25... Nfd5 $16 26. Nxd5 Nxd5) 26. Rxe8+ {[%emt 0:00:06]} Nxe8 {[%emt 0:00:01]} 27. Ndb5 {[%emt 0:00:07]} Rc5 {[%emt 0:00:02]} 28. Bxh6 {[%emt 0:00:08]} Bxc3 {[%emt 0:00:06]} 29. Nxc3 {[%emt 0:00:01]} Qxd6 {[%emt 0:00:02]} 30. Qe3 {[%emt 0:00:28]} ({Don't play} 30. Qxd6 $6 Nxd6 31. Ne2 (31. Rxd6 Rxc3 32. Rb6 Rxb3 $11) 31... Nf5 $16) 30... Qe5 {[%emt 0:00:04] Strongly threatening ...Qxe3.} 31. Qxe5 {[%emt 0:00:15]} Rxe5 {[%emt 0:00:00]} 32. Bf4 {[%emt 0:00:06]} Re6 {[%emt 0:00:01]} 33. Kg1 {[%emt 0:00:02]} Ng7 {[%emt 0:00:05]} 34. Rd8+ {[%emt 0:00:03]} Re8 {[%emt 0:00:03]} 35. Rxe8+ Nxe8 $18 {[%emt 0:00:01][%mdl 4096] Endgame KBN-KNN} 36. Ne4 {[%emt 0:00:15] Prevents Nf6.} b6 {[%emt 0:00:01]} (36... Nd3 $142) 37. Kf1 {[%emt 0:00:04]} f5 {[%emt 0:00:04]} 38. Nd6 {[%emt 0:00:06]} Nf6 {[%emt 0:00:01]} 39. Nc4 {[%emt 0:00:01]} Nfd5 {[%emt 0:00:02]} 40. Bg5 {[%emt 0:00:13]} Nd3 {[%emt 0:00:01]} 41. Bd8 {[%emt 0:00:01]} Nc5 {[%emt 0:00:03]} 42. Nxb6 {[%emt 0:00:01]} Nb4 {[%emt 0:00:04]} (42... Ne3+ {was necessary.} 43. Kf2 f4) 43. Nc4 {[%emt 0:00:05]} Nxb3 {[%emt 0:00:01]} 44. Bxa5 {[%emt 0:00:03]} Nc6 {[%emt 0:00:02]} 45. Bc3 {[%emt 0:00:02]} Kf7 {[%emt 0:00:01]} (45... Nc5 $142 46. a5 Kf7 47. Ne5+ Nxe5 48. Bxe5 Ke6) 46. Ne5+ {[%emt 0:00:06]} Nxe5 47. Bxe5 {[%emt 0:00:01] KB-KN} Ke6 {[%emt 0:00:02]} 48. Bc3 {[%emt 0:00:01]} Kd5 {[%emt 0:00:04]} 49. Kf2 {[%emt 0:00:02]} Nc1 {[%emt 0:00:03]} 50. a5 {[%emt 0:00:03] aiming for a6.} Kc5 {[%emt 0:00:01]} 51. Ke3 {[%emt 0:00:02]} Kb5 {[%emt 0:00:01]} 52. h4 {[%emt 0:00:03]} Na2 {[%emt 0:00:05]} 53. Bd2 {[%emt 0:00:01] Weighted Error Value: White=0.23 (precise) /Black=0.43} 1-0